[Event "Titled Tuesday Blitz May 10 Early 2022"]
[White "Jeet, Jain"]
[Black "Srihari L R"]
[WhiteFideId "5073022"]
[BlackFideId "46617116"]
[WhiteElo "2028"]
[BlackElo "2121"]
[Result "0-1"]
[Round "06"]
[TimeControl "180+1"]
[Date "2022.05.11"]
[WhiteClock "0:00:45"]
[BlackClock "0:01:33"]

1. Nf3 {[%clk 0:03:00]}  c5 {[%clk 0:02:38]} 2. e3 {[%clk 0:03:00]}  Nc6 {[%clk 0:02:38]} 3. b3 {[%clk 0:03:00]}  d5 {[%clk 0:02:37]} 4. c4 {[%clk 0:02:59]}  d4 {[%clk 0:02:36]} 5. exd4 {[%clk 0:02:58]}  cxd4 {[%clk 0:02:37]} 6. g3 {[%clk 0:02:59]}  g6 {[%clk 0:02:36]} 7. Bg2 {[%clk 0:02:58]}  Bg7 {[%clk 0:02:37]} 8. d3 {[%clk 0:02:58]}  Nh6 {[%clk 0:02:35]} 9. O-O {[%clk 0:02:54]}  O-O {[%clk 0:02:35]} 10. Bb2 {[%clk 0:02:53]}  e5 {[%clk 0:02:31]} 11. Nbd2 {[%clk 0:02:49]}  f6 {[%clk 0:02:32]} 12. Re1 {[%clk 0:02:49]}  Nf7 {[%clk 0:02:31]} 13. a3 {[%clk 0:02:47]}  a5 {[%clk 0:02:31]} 14. Qc2 {[%clk 0:02:47]}  Re8 {[%clk 0:02:29]} 15. Ne4 {[%clk 0:02:17]}  Qc7 {[%clk 0:02:28]} 16. a4 {[%clk 0:02:07]}  Nb4 {[%clk 0:02:26]} 17. Qb1 {[%clk 0:02:05]}  Bg4 {[%clk 0:02:20]} 18. h3 {[%clk 0:02:03]}  Be6 {[%clk 0:02:19]} 19. Ba3 {[%clk 0:02:01]}  h6 {[%clk 0:02:16]} 20. Ned2 {[%clk 0:01:57]}  Bf8 {[%clk 0:02:14]} 21. Ne4 {[%clk 0:01:49]}  Kg7 {[%clk 0:02:14]} 22. Ned2 {[%clk 0:01:46]}  Rad8 {[%clk 0:02:12]} 23. Bf1 {[%clk 0:01:42]}  Na6 {[%clk 0:02:12]} 24. Bxf8+ {[%clk 0:01:41]}  Kxf8 {[%clk 0:02:12]} 25. Qd1 {[%clk 0:01:41]}  Kg7 {[%clk 0:02:12]} 26. Nb1 {[%clk 0:01:41]}  Qd7 {[%clk 0:01:59]} 27. Kh2 {[%clk 0:01:40]}  Nc5 {[%clk 0:01:57]} 28. Na3 {[%clk 0:01:39]}  Ng5 {[%clk 0:01:55]} 29. h4 {[%clk 0:01:34]}  Nxf3+ {[%clk 0:01:53]} 30. Qxf3 {[%clk 0:01:35]}  Bg4 {[%clk 0:01:52]} 31. Qg2 {[%clk 0:01:31]}  Qf5 {[%clk 0:01:50]} 32. Nb5 {[%clk 0:01:11]}  Bf3 {[%clk 0:01:50]} 33. Qh3 {[%clk 0:01:11]}  Qxh3+ {[%clk 0:01:48]} 34. Kxh3 {[%clk 0:01:10]}  e4 {[%clk 0:01:48]} 35. Nc7 {[%clk 0:00:52]}  Re5 {[%clk 0:01:40]} 36. dxe4 {[%clk 0:00:45]}  Nxe4 {[%clk 0:01:36]} 37. Ra2 {[%clk 0:00:46]}  d3 {[%clk 0:01:34]} 38. Nd5 {[%clk 0:00:45]}  d2 {[%clk 0:01:34]} 39. Rxe4 {[%clk 0:00:45]}  d1=Q {[%clk 0:01:33]} 0-1


[Site "https://www.chess.com"]

[Event "Titled Tuesday Blitz May 10 Early 2022"]
[White "Jian, Alex"]
[Black "Ceres, Dragos"]
[WhiteFideId "30901022"]
[BlackFideId "13905864"]
[WhiteElo "2111"]
[BlackElo "2150"]
[Result "0-1"]
[Round "06"]
[TimeControl "180+1"]
[Date "2022.05.11"]
[WhiteClock "0:00:03"]
[BlackClock "0:00:39"]

1. d4 {[%clk 0:03:00]}  Nf6 {[%clk 0:02:59]} 2. c4 {[%clk 0:03:01]}  e6 {[%clk 0:03:00]} 3. Nc3 {[%clk 0:03:01]}  Bb4 {[%clk 0:02:53]} 4. Qc2 {[%clk 0:03:00]}  O-O {[%clk 0:02:51]} 5. a3 {[%clk 0:03:00]}  Bxc3+ {[%clk 0:02:51]} 6. Qxc3 {[%clk 0:03:01]}  b6 {[%clk 0:02:49]} 7. Bg5 {[%clk 0:03:01]}  Bb7 {[%clk 0:02:48]} 8. f3 {[%clk 0:03:01]}  d6 {[%clk 0:02:39]} 9. e4 {[%clk 0:02:58]}  e5 {[%clk 0:01:58]} 10. d5 {[%clk 0:02:41]}  Nbd7 {[%clk 0:01:56]} 11. Bd3 {[%clk 0:02:32]}  c6 {[%clk 0:01:50]} 12. Nh3 {[%clk 0:02:20]}  Rc8 {[%clk 0:01:40]} 13. dxc6 {[%clk 0:01:44]}  Bxc6 {[%clk 0:01:38]} 14. O-O {[%clk 0:01:43]}  Nc5 {[%clk 0:01:37]} 15. Be3 {[%clk 0:01:32]}  Nfd7 {[%clk 0:01:27]} 16. Rad1 {[%clk 0:01:25]}  Qe7 {[%clk 0:01:23]} 17. Qd2 {[%clk 0:01:10]}  Ba4 {[%clk 0:01:19]} 18. Bc2 {[%clk 0:01:02]}  Bxc2 {[%clk 0:01:11]} 19. Qxc2 {[%clk 0:01:03]}  Rfd8 {[%clk 0:01:10]} 20. b3 {[%clk 0:00:55]}  Ne6 {[%clk 0:01:04]} 21. Qd2 {[%clk 0:00:52]}  Ndc5 {[%clk 0:01:04]} 22. Rb1 {[%clk 0:00:41]}  a6 {[%clk 0:00:55]} 23. Nf2 {[%clk 0:00:38]}  g6 {[%clk 0:00:48]} 24. Nd3 {[%clk 0:00:35]}  f5 {[%clk 0:00:46]} 25. Nxc5 {[%clk 0:00:29]}  dxc5 {[%clk 0:00:46]} 26. Qc2 {[%clk 0:00:08]}  f4 {[%clk 0:00:46]} 27. Bf2 {[%clk 0:00:08]}  Nd4 {[%clk 0:00:46]} 28. Bxd4 {[%clk 0:00:08]}  Rxd4 {[%clk 0:00:47]} 29. Rbd1 {[%clk 0:00:07]}  Rcd8 {[%clk 0:00:47]} 30. h3 {[%clk 0:00:04]}  R8d6 {[%clk 0:00:45]} 31. Kh2 {[%clk 0:00:02]}  Qd7 {[%clk 0:00:45]} 32. Rxd4 {[%clk 0:00:01]}  Rxd4 {[%clk 0:00:46]} 33. Rf2 {[%clk 0:00:01]}  Kg7 {[%clk 0:00:44]} 34. Qb2 {[%clk 0:00:01]}  Kf6 {[%clk 0:00:43]} 35. Qc2 {[%clk 0:00:01]}  h5 {[%clk 0:00:43]} 36. Qb2 {[%clk 0:00:01]}  g5 {[%clk 0:00:44]} 37. Qc2 {[%clk 0:00:01]}  g4 {[%clk 0:00:44]} 38. fxg4 {[%clk 0:00:01]}  hxg4 {[%clk 0:00:45]} 39. hxg4 {[%clk 0:00:02]}  Qxg4 {[%clk 0:00:45]} 40. Qe2 {[%clk 0:00:02]}  Qg3+ {[%clk 0:00:43]} 41. Kg1 {[%clk 0:00:03]}  Qxb3 {[%clk 0:00:39]} 42. Qh5 {[%clk 0:00:03]}  Rd1+ {[%clk 0:00:39]} 43. Kh2 {[%clk 0:00:03]}  Qg3# {[%clk 0:00:39]} 0-1


[Site "https://www.chess.com"]

[Event "Titled Tuesday Blitz May 10 Early 2022"]
[White "Jobava, Baadur"]
[Black "Seo, Jung Min"]
[WhiteFideId "13601520"]
[BlackFideId "1734687"]
[WhiteElo "2617"]
[BlackElo "2401"]
[Result "1-0"]
[Round "06"]
[TimeControl "180+1"]
[Date "2022.05.10"]
[WhiteClock "0:01:29"]
[BlackClock "0:01:28"]

1. b3 {[%clk 0:03:00]}  b6 {[%clk 0:02:57]} 2. Bb2 {[%clk 0:03:01]}  Bb7 {[%clk 0:02:58]} 3. Nf3 {[%clk 0:03:01]}  Nf6 {[%clk 0:02:58]} 4. e3 {[%clk 0:03:01]}  e6 {[%clk 0:02:57]} 5. Be2 {[%clk 0:03:02]}  Be7 {[%clk 0:02:57]} 6. O-O {[%clk 0:03:02]}  O-O {[%clk 0:02:57]} 7. c4 {[%clk 0:03:03]}  c5 {[%clk 0:02:57]} 8. d4 {[%clk 0:03:03]}  cxd4 {[%clk 0:02:57]} 9. exd4 {[%clk 0:03:02]}  d5 {[%clk 0:02:57]} 10. Nbd2 {[%clk 0:03:02]}  Nbd7 {[%clk 0:02:57]} 11. Re1 {[%clk 0:03:02]}  Rc8 {[%clk 0:02:57]} 12. Rc1 {[%clk 0:03:02]}  Rc7 {[%clk 0:02:54]} 13. Bf1 {[%clk 0:03:03]}  Qa8 {[%clk 0:02:54]} 14. Ne5 {[%clk 0:03:00]}  Nxe5 {[%clk 0:02:49]} 15. dxe5 {[%clk 0:03:01]}  Nd7 {[%clk 0:02:50]} 16. cxd5 {[%clk 0:02:57]}  Rxc1 {[%clk 0:02:48]} 17. Bxc1 {[%clk 0:02:52]}  Bxd5 {[%clk 0:02:48]} 18. Nc4 {[%clk 0:02:52]}  Rd8 {[%clk 0:02:45]} 19. Qg4 {[%clk 0:02:42]}  Nf8 {[%clk 0:02:43]} 20. h4 {[%clk 0:02:33]}  Qc6 {[%clk 0:02:15]} 21. h5 {[%clk 0:02:32]}  b5 {[%clk 0:02:14]} 22. Bh6 {[%clk 0:02:27]}  g6 {[%clk 0:02:13]} 23. Nd6 {[%clk 0:02:26]}  Bxd6 {[%clk 0:01:51]} 24. exd6 {[%clk 0:02:27]}  Qxd6 {[%clk 0:01:51]} 25. Qd4 {[%clk 0:02:11]}  e5 {[%clk 0:01:48]} 26. Rxe5 {[%clk 0:02:08]}  f6 {[%clk 0:01:44]} 27. Rxd5 {[%clk 0:02:01]}  Qxd5 {[%clk 0:01:43]} 28. Qxf6 {[%clk 0:02:01]}  Ne6 {[%clk 0:01:33]} 29. hxg6 {[%clk 0:01:59]}  hxg6 {[%clk 0:01:33]} 30. Qxg6+ {[%clk 0:01:59]}  Kh8 {[%clk 0:01:34]} 31. Bc1 {[%clk 0:01:40]}  Qe5 {[%clk 0:01:33]} 32. Bb2 {[%clk 0:01:29]}  Qxb2 {[%clk 0:01:31]} 33. Qh6+ {[%clk 0:01:29]}  Kg8 {[%clk 0:01:30]} 34. Qxe6+ {[%clk 0:01:30]}  Kh8 {[%clk 0:01:28]} 35. Qh6+ {[%clk 0:01:28]}  Kg8 {[%clk 0:01:28]} 36. Qg5+ {[%clk 0:01:29]} 1-0


[Site "https://www.chess.com"]

[Event "Titled Tuesday Blitz May 10 Early 2022"]
[White "Kaasen, Tor Fredrik"]
[Black "Maghsoodloo, Parham"]
[WhiteFideId "1516647"]
[BlackFideId "12539929"]
[WhiteElo "2335"]
[BlackElo "2630"]
[Result "0-1"]
[Round "06"]
[TimeControl "180+1"]
[Date "2022.05.10"]
[WhiteClock "0:00:16"]
[BlackClock "0:01:13"]

1. d4 {[%clk 0:03:00]}  d5 {[%clk 0:02:59]} 2. c4 {[%clk 0:03:01]}  e6 {[%clk 0:02:59]} 3. Nc3 {[%clk 0:03:01]}  Bb4 {[%clk 0:02:59]} 4. a3 {[%clk 0:02:55]}  Bxc3+ {[%clk 0:03:00]} 5. bxc3 {[%clk 0:02:56]}  Nf6 {[%clk 0:03:00]} 6. cxd5 {[%clk 0:02:54]}  exd5 {[%clk 0:02:59]} 7. e3 {[%clk 0:02:53]}  O-O {[%clk 0:02:55]} 8. Bd3 {[%clk 0:02:54]}  c5 {[%clk 0:02:55]} 9. Ne2 {[%clk 0:02:52]}  b6 {[%clk 0:02:56]} 10. O-O {[%clk 0:02:52]}  Bb7 {[%clk 0:02:56]} 11. f3 {[%clk 0:02:51]}  Re8 {[%clk 0:02:56]} 12. Ng3 {[%clk 0:02:51]}  Nc6 {[%clk 0:02:57]} 13. Kh1 {[%clk 0:02:46]}  Qc8 {[%clk 0:02:52]} 14. Qa4 {[%clk 0:02:29]}  Na5 {[%clk 0:02:47]} 15. Qd1 {[%clk 0:02:06]}  Ba6 {[%clk 0:02:47]} 16. e4 {[%clk 0:01:58]}  Bxd3 {[%clk 0:02:46]} 17. Qxd3 {[%clk 0:01:59]}  cxd4 {[%clk 0:02:38]} 18. cxd4 {[%clk 0:01:59]}  Qc4 {[%clk 0:02:39]} 19. Qxc4 {[%clk 0:01:56]}  Nxc4 {[%clk 0:02:36]} 20. e5 {[%clk 0:01:56]}  Nd7 {[%clk 0:02:37]} 21. Nf5 {[%clk 0:01:56]}  f6 {[%clk 0:02:25]} 22. f4 {[%clk 0:01:56]}  g6 {[%clk 0:02:26]} 23. Nh6+ {[%clk 0:01:44]}  Kg7 {[%clk 0:02:25]} 24. Ng4 {[%clk 0:01:45]}  f5 {[%clk 0:02:26]} 25. Ne3 {[%clk 0:01:34]}  Nxe3 {[%clk 0:02:25]} 26. Bxe3 {[%clk 0:01:35]}  Rac8 {[%clk 0:02:18]} 27. a4 {[%clk 0:01:35]}  Rc4 {[%clk 0:02:15]} 28. Rfb1 {[%clk 0:01:32]}  a6 {[%clk 0:02:14]} 29. Bf2 {[%clk 0:01:31]}  Kf7 {[%clk 0:02:14]} 30. Rb3 {[%clk 0:01:26]}  Rec8 {[%clk 0:02:12]} 31. e6+ {[%clk 0:01:17]}  Kxe6 {[%clk 0:02:11]} 32. Re1+ {[%clk 0:01:17]}  Kd6 {[%clk 0:02:06]} 33. Rbe3 {[%clk 0:01:18]}  R8c6 {[%clk 0:01:53]} 34. Bh4 {[%clk 0:01:13]}  Rc1 {[%clk 0:01:52]} 35. h3 {[%clk 0:00:53]}  Rxe1+ {[%clk 0:01:42]} 36. Rxe1 {[%clk 0:00:54]}  Rc4 {[%clk 0:01:42]} 37. Re7 {[%clk 0:00:46]}  b5 {[%clk 0:01:18]} 38. axb5 {[%clk 0:00:38]}  axb5 {[%clk 0:01:19]} 39. Rxh7 {[%clk 0:00:38]}  b4 {[%clk 0:01:20]} 40. Be7+ {[%clk 0:00:38]}  Ke6 {[%clk 0:01:19]} 41. Bc5 {[%clk 0:00:32]}  Nxc5 {[%clk 0:01:19]} 42. dxc5 {[%clk 0:00:33]}  d4 {[%clk 0:01:19]} 43. Rg7 {[%clk 0:00:27]}  b3 {[%clk 0:01:14]} 44. Rb7 {[%clk 0:00:22]}  d3 {[%clk 0:01:14]} 45. Rb6+ {[%clk 0:00:16]}  Kd5 {[%clk 0:01:13]} 46. Rxb3 {[%clk 0:00:16]}  d2 {[%clk 0:01:13]} 0-1


[Site "https://www.chess.com"]

[Event "Titled Tuesday Blitz May 10 Early 2022"]
[White "Kadric, Denis"]
[Black "Sjugirov, Sanan"]
[WhiteFideId "14403803"]
[BlackFideId "4189302"]
[WhiteElo "2657"]
[BlackElo "2602"]
[Result "0-1"]
[Round "06"]
[TimeControl "180+1"]
[Date "2022.05.10"]
[WhiteClock "0:00:15"]
[BlackClock "0:00:46"]

1. e4 {[%clk 0:03:00]}  c5 {[%clk 0:02:57]} 2. Nf3 {[%clk 0:02:56]}  d6 {[%clk 0:02:57]} 3. d4 {[%clk 0:02:56]}  cxd4 {[%clk 0:02:58]} 4. Nxd4 {[%clk 0:02:56]}  Nf6 {[%clk 0:02:58]} 5. Nc3 {[%clk 0:02:56]}  a6 {[%clk 0:02:59]} 6. Be3 {[%clk 0:02:55]}  e5 {[%clk 0:02:58]} 7. Nb3 {[%clk 0:02:54]}  Be7 {[%clk 0:02:48]} 8. h3 {[%clk 0:02:54]}  Be6 {[%clk 0:02:45]} 9. Qf3 {[%clk 0:02:54]}  O-O {[%clk 0:02:45]} 10. O-O-O {[%clk 0:02:53]}  b5 {[%clk 0:02:36]} 11. g4 {[%clk 0:02:53]}  b4 {[%clk 0:02:37]} 12. Nd5 {[%clk 0:02:53]}  Nxd5 {[%clk 0:02:37]} 13. exd5 {[%clk 0:02:54]}  Bc8 {[%clk 0:02:37]} 14. Kb1 {[%clk 0:02:52]}  a5 {[%clk 0:02:38]} 15. Nd2 {[%clk 0:02:48]}  a4 {[%clk 0:02:34]} 16. Bd3 {[%clk 0:02:37]}  Ba6 {[%clk 0:02:31]} 17. Bf5 {[%clk 0:02:33]}  Nd7 {[%clk 0:02:24]} 18. Ne4 {[%clk 0:02:30]}  b3 {[%clk 0:02:16]} 19. cxb3 {[%clk 0:02:28]}  axb3 {[%clk 0:02:17]} 20. a3 {[%clk 0:02:29]}  Nb6 {[%clk 0:02:13]} 21. g5 {[%clk 0:02:09]}  Nc4 {[%clk 0:02:00]} 22. Bxh7+ {[%clk 0:01:48]}  Kxh7 {[%clk 0:01:59]} 23. Qh5+ {[%clk 0:01:48]}  Kg8 {[%clk 0:01:57]} 24. Rhg1 {[%clk 0:01:48]}  Bc8 {[%clk 0:01:44]} 25. Rg4 {[%clk 0:01:38]}  Bxg4 {[%clk 0:01:32]} 26. hxg4 {[%clk 0:01:38]}  Qc8 {[%clk 0:01:21]} 27. Rc1 {[%clk 0:00:52]}  Qa6 {[%clk 0:01:21]} 28. Rh1 {[%clk 0:00:35]}  Nxa3+ {[%clk 0:01:19]} 29. Kc1 {[%clk 0:00:35]}  Rfc8+ {[%clk 0:00:59]} 30. Bc5 {[%clk 0:00:21]}  Bxg5+ {[%clk 0:00:48]} 31. Kd1 {[%clk 0:00:15]}  Qd3+ {[%clk 0:00:46]} 0-1


[Site "https://www.chess.com"]

[Event "Titled Tuesday Blitz May 10 Early 2022"]
[White "Kamsky, Gata"]
[Black "Gurevich, Dmitry"]
[WhiteFideId "2000024"]
[BlackFideId "2000407"]
[WhiteElo "2645"]
[BlackElo "2506"]
[Result "1-0"]
[Round "06"]
[TimeControl "180+1"]
[Date "2022.05.10"]
[WhiteClock "0:00:34"]
[BlackClock "0:01:06"]

1. e4 {[%clk 0:03:00]}  c5 {[%clk 0:02:59]} 2. Nf3 {[%clk 0:03:00]}  d6 {[%clk 0:02:59]} 3. d4 {[%clk 0:02:59]}  cxd4 {[%clk 0:02:59]} 4. Nxd4 {[%clk 0:03:00]}  Nf6 {[%clk 0:02:59]} 5. Nc3 {[%clk 0:03:00]}  Nc6 {[%clk 0:03:00]} 6. Bg5 {[%clk 0:02:57]}  e6 {[%clk 0:03:00]} 7. Qd2 {[%clk 0:02:57]}  Be7 {[%clk 0:03:00]} 8. O-O-O {[%clk 0:02:47]}  O-O {[%clk 0:03:00]} 9. f3 {[%clk 0:02:42]}  Nxd4 {[%clk 0:02:58]} 10. Qxd4 {[%clk 0:02:41]}  a6 {[%clk 0:02:59]} 11. h4 {[%clk 0:02:39]}  b5 {[%clk 0:02:58]} 12. Bd3 {[%clk 0:02:33]}  Bb7 {[%clk 0:02:58]} 13. Kb1 {[%clk 0:02:32]}  Rc8 {[%clk 0:02:57]} 14. g4 {[%clk 0:02:28]}  Qc7 {[%clk 0:02:55]} 15. Bc1 {[%clk 0:02:20]}  Qc5 {[%clk 0:02:54]} 16. Ne2 {[%clk 0:02:13]}  Nd7 {[%clk 0:02:46]} 17. Qxc5 {[%clk 0:01:53]}  Nxc5 {[%clk 0:02:45]} 18. Bg5 {[%clk 0:01:50]}  f6 {[%clk 0:02:42]} 19. Be3 {[%clk 0:01:36]}  d5 {[%clk 0:02:42]} 20. Bxc5 {[%clk 0:01:29]}  Bxc5 {[%clk 0:02:40]} 21. Nf4 {[%clk 0:01:28]}  dxe4 {[%clk 0:02:37]} 22. Bxe4 {[%clk 0:01:25]}  Bxe4 {[%clk 0:02:36]} 23. fxe4 {[%clk 0:01:25]}  Rfe8 {[%clk 0:02:28]} 24. Rd7 {[%clk 0:01:22]}  Be3 {[%clk 0:02:19]} 25. Nh5 {[%clk 0:01:22]}  Red8 {[%clk 0:02:00]} 26. Rxg7+ {[%clk 0:01:14]}  Kh8 {[%clk 0:01:59]} 27. Re7 {[%clk 0:01:13]}  Bd4 {[%clk 0:01:53]} 28. g5 {[%clk 0:00:51]}  f5 {[%clk 0:01:44]} 29. Rxe6 {[%clk 0:00:48]}  Rf8 {[%clk 0:01:38]} 30. c3 {[%clk 0:00:45]}  Bc5 {[%clk 0:01:33]} 31. Nf6 {[%clk 0:00:44]}  b4 {[%clk 0:01:18]} 32. exf5 {[%clk 0:00:42]}  bxc3 {[%clk 0:01:17]} 33. bxc3 {[%clk 0:00:42]}  Rb8+ {[%clk 0:01:16]} 34. Kc2 {[%clk 0:00:43]}  Rb7 {[%clk 0:01:17]} 35. Rb1 {[%clk 0:00:40]}  Rc7 {[%clk 0:01:16]} 36. Rbe1 {[%clk 0:00:36]}  Bb4 {[%clk 0:01:06]} 37. Nd5 {[%clk 0:00:34]} 1-0


[Site "https://www.chess.com"]

[Event "Titled Tuesday Blitz May 10 Early 2022"]
[White "Karacsonyi, Gellert"]
[Black "Sychev, Klementy"]
[WhiteFideId "764620"]
[BlackFideId "4114060"]
[WhiteElo "2187"]
[BlackElo "2564"]
[Result "1-0"]
[Round "06"]
[TimeControl "180+1"]
[Date "2022.05.10"]
[WhiteClock "0:01:38"]
[BlackClock "0:01:48"]

1. e4 {[%clk 0:03:00]}  c5 {[%clk 0:03:00]} 2. Nf3 {[%clk 0:03:00]}  d6 {[%clk 0:03:00]} 3. d4 {[%clk 0:03:00]}  cxd4 {[%clk 0:03:01]} 4. Nxd4 {[%clk 0:03:01]}  Nf6 {[%clk 0:03:02]} 5. Nc3 {[%clk 0:03:02]}  a6 {[%clk 0:03:02]} 6. Bc4 {[%clk 0:03:02]}  e6 {[%clk 0:03:02]} 7. O-O {[%clk 0:03:02]}  Be7 {[%clk 0:02:54]} 8. Bb3 {[%clk 0:03:01]}  O-O {[%clk 0:02:48]} 9. f4 {[%clk 0:03:01]}  b5 {[%clk 0:02:48]} 10. e5 {[%clk 0:02:59]}  dxe5 {[%clk 0:02:48]} 11. fxe5 {[%clk 0:02:59]}  Nfd7 {[%clk 0:02:48]} 12. Qg4 {[%clk 0:02:56]}  Nxe5 {[%clk 0:02:47]} 13. Qe4 {[%clk 0:02:56]}  Nbc6 {[%clk 0:02:47]} 14. Nxc6 {[%clk 0:02:45]}  Nxc6 {[%clk 0:02:26]} 15. Qxc6 {[%clk 0:02:43]}  Rb8 {[%clk 0:02:27]} 16. Qf3 {[%clk 0:02:11]}  Bb7 {[%clk 0:02:25]} 17. Qg3 {[%clk 0:02:11]}  e5 {[%clk 0:02:19]} 18. Be3 {[%clk 0:02:00]}  Bh4 {[%clk 0:01:57]} 19. Qg4 {[%clk 0:01:52]}  Bc8 {[%clk 0:01:50]} 20. Qh5 {[%clk 0:01:42]}  g6 {[%clk 0:01:48]} 21. Qxe5 {[%clk 0:01:38]} 1-0


[Site "https://www.chess.com"]

[Event "Titled Tuesday Blitz May 10 Early 2022"]
[White "Karolczuk, Iwo"]
[Black "Johnson, Ben"]
[WhiteFideId "21816972"]
[BlackFideId "2010917"]
[WhiteElo "2258"]
[BlackElo "2240"]
[Result "1-0"]
[Round "06"]
[TimeControl "180+1"]
[Date "2022.05.11"]
[WhiteClock "0:00:07"]
[BlackClock "0:00:01"]

1. e4 {[%clk 0:03:00]}  c5 {[%clk 0:03:00]} 2. Nf3 {[%clk 0:03:00]}  Nc6 {[%clk 0:03:00]} 3. Bb5 {[%clk 0:02:59]}  g6 {[%clk 0:03:00]} 4. Bxc6 {[%clk 0:02:57]}  bxc6 {[%clk 0:03:01]} 5. O-O {[%clk 0:02:56]}  Bg7 {[%clk 0:03:02]} 6. Re1 {[%clk 0:02:56]}  Qc7 {[%clk 0:03:01]} 7. c3 {[%clk 0:02:55]}  d6 {[%clk 0:02:57]} 8. d4 {[%clk 0:02:55]}  cxd4 {[%clk 0:02:55]} 9. cxd4 {[%clk 0:02:54]}  Nf6 {[%clk 0:02:28]} 10. Nc3 {[%clk 0:02:46]}  O-O {[%clk 0:02:27]} 11. h3 {[%clk 0:02:46]}  c5 {[%clk 0:02:23]} 12. e5 {[%clk 0:02:33]}  dxe5 {[%clk 0:02:20]} 13. dxe5 {[%clk 0:02:31]}  Rd8 {[%clk 0:02:20]} 14. Qa4 {[%clk 0:01:36]}  Nh5 {[%clk 0:02:04]} 15. Ne4 {[%clk 0:00:57]}  Bh8 {[%clk 0:01:18]} 16. Neg5 {[%clk 0:00:47]}  Bb7 {[%clk 0:01:13]} 17. Qg4 {[%clk 0:00:27]}  Ng7 {[%clk 0:00:58]} 18. Bf4 {[%clk 0:00:24]}  Nf5 {[%clk 0:00:39]} 19. e6 {[%clk 0:00:22]}  f6 {[%clk 0:00:20]} 20. Bxc7 {[%clk 0:00:21]}  Rdc8 {[%clk 0:00:13]} 21. Nf7 {[%clk 0:00:15]}  Rxc7 {[%clk 0:00:10]} 22. Nh4 {[%clk 0:00:14]}  Nxh4 {[%clk 0:00:06]} 23. Qxh4 {[%clk 0:00:15]}  Bg7 {[%clk 0:00:05]} 24. Nh6+ {[%clk 0:00:15]}  Bxh6 {[%clk 0:00:04]} 25. Qxh6 {[%clk 0:00:14]}  Bd5 {[%clk 0:00:03]} 26. Rad1 {[%clk 0:00:13]}  Bxa2 {[%clk 0:00:03]} 27. Rd7 {[%clk 0:00:12]}  Rxd7 {[%clk 0:00:03]} 28. exd7 {[%clk 0:00:13]}  e5 {[%clk 0:00:02]} 29. Qh4 {[%clk 0:00:08]}  Kg7 {[%clk 0:00:01]} 30. Rd1 {[%clk 0:00:07]} 1-0


[Site "https://www.chess.com"]

[Event "Titled Tuesday Blitz May 10 Early 2022"]
[White "Khabinets, Ivan"]
[Black "Cherniaiev, Tykhon"]
[WhiteFideId "14115980"]
[BlackFideId "14182360"]
[WhiteElo "2114"]
[BlackElo "2289"]
[Result "1-0"]
[Round "06"]
[TimeControl "180+1"]
[Date "2022.05.11"]
[WhiteClock "0:00:39"]
[BlackClock "0:00:02"]

1. e4 {[%clk 0:02:29]}  c5 {[%clk 0:02:59]} 2. Nf3 {[%clk 0:02:24]}  e6 {[%clk 0:02:59]} 3. g3 {[%clk 0:02:23]}  d5 {[%clk 0:02:58]} 4. exd5 {[%clk 0:02:17]}  exd5 {[%clk 0:02:59]} 5. Bg2 {[%clk 0:02:17]}  Nf6 {[%clk 0:02:59]} 6. O-O {[%clk 0:02:18]}  Be7 {[%clk 0:02:59]} 7. Re1 {[%clk 0:02:17]}  O-O {[%clk 0:03:00]} 8. d3 {[%clk 0:02:18]}  Nc6 {[%clk 0:02:59]} 9. c4 {[%clk 0:02:18]}  dxc4 {[%clk 0:02:59]} 10. dxc4 {[%clk 0:02:18]}  Be6 {[%clk 0:03:00]} 11. b3 {[%clk 0:02:17]}  Nb4 {[%clk 0:02:56]} 12. Nc3 {[%clk 0:02:12]}  Ng4 {[%clk 0:02:39]} 13. h3 {[%clk 0:01:54]}  Bf6 {[%clk 0:02:05]} 14. Bd2 {[%clk 0:01:53]}  Nxf2 {[%clk 0:01:41]} 15. Kxf2 {[%clk 0:01:53]}  Nd3+ {[%clk 0:01:40]} 16. Kg1 {[%clk 0:01:51]}  Nxe1 {[%clk 0:01:40]} 17. Qxe1 {[%clk 0:01:49]}  Re8 {[%clk 0:01:35]} 18. Qf2 {[%clk 0:01:47]}  Qd3 {[%clk 0:01:31]} 19. Bf1 {[%clk 0:01:41]}  Qg6 {[%clk 0:01:23]} 20. Re1 {[%clk 0:01:32]}  Rad8 {[%clk 0:01:20]} 21. Ne4 {[%clk 0:01:31]}  Bd4 {[%clk 0:00:51]} 22. Nxd4 {[%clk 0:01:29]}  cxd4 {[%clk 0:00:51]} 23. Bd3 {[%clk 0:01:24]}  Bxh3 {[%clk 0:00:29]} 24. Bg5 {[%clk 0:01:23]}  Qh5 {[%clk 0:00:15]} 25. Bxd8 {[%clk 0:01:22]}  Rxd8 {[%clk 0:00:16]} 26. Qf4 {[%clk 0:01:14]}  Bg4 {[%clk 0:00:14]} 27. Nf2 {[%clk 0:01:07]}  Be6 {[%clk 0:00:14]} 28. Re5 {[%clk 0:01:00]}  Qh6 {[%clk 0:00:07]} 29. Qxh6 {[%clk 0:01:00]}  gxh6 {[%clk 0:00:08]} 30. Kf1 {[%clk 0:00:59]}  Kg7 {[%clk 0:00:08]} 31. Ne4 {[%clk 0:00:54]}  Re8 {[%clk 0:00:06]} 32. Kf2 {[%clk 0:00:53]}  b6 {[%clk 0:00:04]} 33. Nd6 {[%clk 0:00:52]}  Rd8 {[%clk 0:00:04]} 34. Nf5+ {[%clk 0:00:51]}  Kf6 {[%clk 0:00:04]} 35. Rb5 {[%clk 0:00:48]}  Rb8 {[%clk 0:00:04]} 36. Nxd4 {[%clk 0:00:47]}  a6 {[%clk 0:00:03]} 37. Rh5 {[%clk 0:00:46]}  Rd8 {[%clk 0:00:04]} 38. Ke3 {[%clk 0:00:46]}  Bg4 {[%clk 0:00:04]} 39. Rxh6+ {[%clk 0:00:46]}  Kg5 {[%clk 0:00:04]} 40. Rxh7 {[%clk 0:00:45]}  Re8+ {[%clk 0:00:04]} 41. Kd2 {[%clk 0:00:45]}  f5 {[%clk 0:00:05]} 42. Be2 {[%clk 0:00:43]}  Rd8 {[%clk 0:00:05]} 43. Kc3 {[%clk 0:00:43]}  Bxe2 {[%clk 0:00:05]} 44. Nxe2 {[%clk 0:00:43]}  Kg4 {[%clk 0:00:05]} 45. Rg7+ {[%clk 0:00:41]}  Kf3 {[%clk 0:00:06]} 46. Nd4+ {[%clk 0:00:42]}  Ke4 {[%clk 0:00:06]} 47. Rf7 {[%clk 0:00:41]}  Ke3 {[%clk 0:00:02]} 48. Nxf5+ {[%clk 0:00:41]}  Ke2 {[%clk 0:00:02]} 49. Nd4+ {[%clk 0:00:40]}  Kd1 {[%clk 0:00:02]} 50. Rf1# {[%clk 0:00:39]} 1-0


[Site "https://www.chess.com"]